Cogmind - Beta 15 @@@ ROGUE MODE // 2025.08.04 @ 01:15:15 Player: Inverisimilidude Result: Destroyed by H-55 Commando with Assault Rifle Performance ------------- Evolutions (1) 500 Regions Visited (6) 1200 Robots Destroyed (0) 0 Value Destroyed (0) 0 Prototype IDs (23) 460 Alien Tech Used (0) 0 Bonus (500) 500 TOTAL SCORE: 2660 Bonus ------- Pacifist 200 Aligned with FarCom 300 Cogmind --------- Core Integrity 0/400 Matter 300/300 Energy 99/100 System Corruption 0% Temperature Cool (0) Movement Core (50) Location -8/Mines Parts ------- > --- POWER (1) -------- (None) > --- PROPULSION (4) --- (None) > --- UTILITY (2) ------ 0b10 Alert Chip > --- WEAPON (2) ------- (None) > --- INVENTORY (5) ---- (None) Peak State ------------ > --- POWER ------------ (None) > --- PROPULSION ------- (None) > --- UTILITY ---------- 0b10 Alert Chip > --- WEAPON ----------- (None) > --- INVENTORY -------- (None) [Rating: 6] Favorites ----------- Power None Propulsion None Utility 0b10 Alert Chip Processor 0b10 Alert Chip Weapon None Build | -11 -10 -10 -9 -9 -9 -8 ------- Run | Yrd Mat Min Mat Min Exi Min Slots Evolved 2 | . . . 2 . . . Power . | . . . . . . . Propulsion 2 | . . . 2 . . . Utility . | . . . . . . . Weapon . | . . . . . . . Parts Attached 1 | . . . . . 1 . Power . | . . . . . . . Engine . | . . . . . . . Core . | . . . . . . . Reactor . | . . . . . . . Propulsion . | . . . . . . . Treads . | . . . . . . . Leg . | . . . . . . . Wheel . | . . . . . . . Hover . | . . . . . . . Flight . | . . . . . . . Utility 1 | . . . . . 1 . Device . | . . . . . . . Storage . | . . . . . . . Processor 1 | . . . . . 1 . Hackware . | . . . . . . . Protection . | . . . . . . . Artifact . | . . . . . . . Weapon . | . . . . . . . Energy Gun . | . . . . . . . Energy Cannon . | . . . . . . . Ballistic Gun . | . . . . . . . Ballistic Cannon . | . . . . . . . Launcher . | . . . . . . . Special Weapon . | . . . . . . . Impact Weapon . | . . . . . . . Slashing Weapon . | . . . . . . . Piercing Weapon . | . . . . . . . Special Melee Weapon . | . . . . . . . Unidentified Prototypes . | . . . . . . . Parts Lost . | . . . . . . . Power . | . . . . . . . Propulsion . | . . . . . . . Utility . | . . . . . . . Weapon . | . . . . . . . Highest Loss Streak . | . . . . . . . To Critical Strikes . | . . . . . . . Average Backups . | . . . . . . . Power . | . . . . . . . Propulsion . | . . . . . . . Utility . | . . . . . . . Weapon . | . . . . . . . Tool/Special . | . . . . . . . Unused Backups . | . . . . . . . Power . | . . . . . . . Propulsion . | . . . . . . . Utility . | . . . . . . . Weapon . | . . . . . . . Tool/Special . | . . . . . . . Average Slot Usage (%) 2 | . . . . . 5 11 Processor 2 | . . . . . 5 11 Peak Build Rating 6 | . . . . . 6 6 Average Rating 1 | . . . . . 2 6 On Entrance . | . . . . . . 6 Naked Turns 438 | . 41 94 50 187 66 . Heaviest Build . | . . . . . . . Greatest Support 3 | 3 3 3 3 3 3 3 Greatest Overweight (x) . | . . . . . . . Average Overweight (x) . | . . . . . . . Largest Inventory Capacity 5 | 5 5 5 5 5 5 5 Average Capacity 5 | 5 5 5 5 5 5 5 Most Carried . | . . . . . . . Average Carried . | . . . . . . . Final Capacity 5 | 5 5 5 5 5 5 5 Final Carried . | . . . . . . . Class Distribution -------------------- 100% | Mutant Dominant Class ---------------- Mutant | -10/Materials Mutant | -10/Mines Mutant | -9/Materials Mutant | -9/Mines Mutant | -9/Exiles Mutant | -8/Mines Resources | -11 -10 -10 -9 -9 -9 -8 ----------- Run | Yrd Mat Min Mat Min Exi Min Matter Collected 196 | 113 . 35 . 38 . 10 Remotely . | . . . . . . . Salvage Created . | . . . . . . . Parts . | . . . . . . . Haulers Intercepted . | . . . . . . . Recyclers Shooed . | . . . . . . . Parts Field Recycled . | . . . . . . . Retrieved Matter . | . . . . . . . Parts Self-Destructed . | . . . . . . . Prevented . | . . . . . . . Kills | -11 -10 -10 -9 -9 -9 -8 ------- Run | Yrd Mat Min Mat Min Exi Min Combat Hostiles Destroyed . | . . . . . . . Classes Destroyed . | . . . . . . . Best Kill Streak . | . . . . . . . Combat Bots Only . | . . . . . . . Max Kills in Single Turn . | . . . . . . . Gunslinging . | . . . . . . . Exploded . | . . . . . . . Melee . | . . . . . . . Uniques/NPCs Destroyed . | . . . . . . . Combat | -11 -10 -10 -9 -9 -9 -8 -------- Run | Yrd Mat Min Mat Min Exi Min Hostile Shots Fired 92 | . . . 4 46 . 42 Missed 46 | . . . 2 22 . 22 Hits 46 | . . . 2 24 . 20 Projectile 46 | . . . 2 24 . 20 Damage Taken 459 | . 38 14 21 206 . 180 Core 459 | . 38 14 21 206 . 180 Absorbed by Shields . | . . . . . . . Core Remaining (%) 89 | 100 . 79 . . . . Volleys Fired . | . . . . . . . Largest . | . . . . . . . Hottest . | . . . . . . . Shots Fired . | . . . . . . . Gun . | . . . . . . . Cannon . | . . . . . . . Launcher . | . . . . . . . Special . | . . . . . . . Kinetic . | . . . . . . . Thermal . | . . . . . . . Explosive . | . . . . . . . Electromagnetic . | . . . . . . . Robot Hit Streak . | . . . . . . . Robot Miss Streak . | . . . . . . . Penetration Max . | . . . . . . . Secondary Targets . | . . . . . . . Shots Hit Robots . | . . . . . . . Core Hits . | . . . . . . . Critical Kills . | . . . . . . . Critical Parts Destroyed . | . . . . . . . Critical Strikes . | . . . . . . . Melee Attacks . | . . . . . . . Impact . | . . . . . . . Slashing . | . . . . . . . Piercing . | . . . . . . . Sneak Attacks . | . . . . . . . Combat Hostiles . | . . . . . . . Follow-up Attacks . | . . . . . . . Damage Inflicted 71 | . . 30 . 41 . . Guns . | . . . . . . . Cannons . | . . . . . . . Explosions . | . . . . . . . Melee . | . . . . . . . Ramming 71 | . . 30 . 41 . . Kinetic . | . . . . . . . Thermal . | . . . . . . . Explosive . | . . . . . . . Electromagnetic . | . . . . . . . Impact . | . . . . . . . Slashing . | . . . . . . . Piercing . | . . . . . . . Highest Corruption . | . . . . . . . Average Corruption . | . . . . . . . Corruption Purged . | . . . . . . . Corruption Blocked . | . . . . . . . Overload Shots . | . . . . . . . Overflow Damage . | . . . . . . . Projectiles . | . . . . . . . Explosions . | . . . . . . . Melee . | . . . . . . . Knockbacks . | . . . . . . . Impact . | . . . . . . . Kinetic . | . . . . . . . Secondary . | . . . . . . . Self-Inflicted Damage 32 | . . 14 . 18 . . Shots . | . . . . . . . Rammed 12 | . . 3 . 9 . . Targets Rammed 12 | . . 3 . 9 . . Kicked . | . . . . . . . Crushed . | . . . . . . . Highest Temperature . | . . . . . . . Average Temperature . | . . . . . . . Received Heat Transfer 39 | . . . 12 . . 27 Siege Activations . | . . . . . . . Martial Activations . | . . . . . . . Shielding Activations . | . . . . . . . Robots Disrupted . | . . . . . . . Combat Hostiles . | . . . . . . . Robots Corrupted . | . . . . . . . Combat Hostiles . | . . . . . . . Parts Fried . | . . . . . . . Impact Corruptions . | . . . . . . . Robots Melted . | . . . . . . . Combat Hostiles . | . . . . . . . Parts Melted . | . . . . . . . Heat Transferred . | . . . . . . . Parts Sabotaged . | . . . . . . . Parts Stolen . | . . . . . . . Parts Stripped . | . . . . . . . Power Chain Reactions . | . . . . . . . Alert | -11 -10 -10 -9 -9 -9 -8 ------- Run | Yrd Mat Min Mat Min Exi Min Maximum Alert Level . | . . . . . . . Low Security (%) 100 | 100 100 100 100 100 . 100 Level 1 . | . . . . . . . Level 2 . | . . . . . . . Level 3 . | . . . . . . . Level 4 . | . . . . . . . Level 5 . | . . . . . . . High Security . | . . . . . . . Max Security . | . . . . . . . Peak Influence 52 | . 8 . 18 20 . 52 Initial 6 | . . . . 6 . . Average 7 | . 3 . 10 4 . 24 Influence Increases 163 | . 8 . 38 45 . 72 Successful Hack 16 | . 8 . 8 . . . Partial Spotted 15 | . . . 15 . . . Lose Combat Pursuer 132 | . . . 15 45 . 72 Influence Decreases 121 | . 8 . 20 48 15 30 Entered New Map 27 | . . . . 12 15 . Time Decay 94 | . 8 . 20 36 . 30 Squads Dispatched 2 | . . . 2 . . . Investigation 1 | . . . 1 . . . Extermination . | . . . . . . . Reinforcement 1 | . . . 1 . . . Assault . | . . . . . . . Garrison . | . . . . . . . Intercept . | . . . . . . . Searches Triggered . | . . . . . . . Construction Impeded . | . . . . . . . Haulers Reinforced . | . . . . . . . Active Scanning Responses . | . . . . . . . Cargo Convoy Interrupts . | . . . . . . . Stealth | -11 -10 -10 -9 -9 -9 -8 --------- Run | Yrd Mat Min Mat Min Exi Min Distress Signals 1 | . . . 1 . . . Communications Jammed . | . . . . . . . Distress Signals . | . . . . . . . Times Spotted 27 | . 2 . 8 7 . 10 Peak Tracking Total 8 | . 2 . 8 4 . 6 Tactical Retreats 5 | . . . 1 2 . 2 Traps | -11 -10 -10 -9 -9 -9 -8 ------- Run | Yrd Mat Min Mat Min Exi Min Traps Triggered 1 | . 1 . . . . . Indirectly . | . . . . . . . Trap Hack Attempts . | . . . . . . . Triggered . | . . . . . . . Disarmed . | . . . . . . . Reprogrammed . | . . . . . . . Reused . | . . . . . . . Traps Extracted . | . . . . . . . Installed . | . . . . . . . Triggered . | . . . . . . . Machines | -11 -10 -10 -9 -9 -9 -8 ---------- Run | Yrd Mat Min Mat Min Exi Min Machines Disabled . | . . . . . . . Max in Single Turn . | . . . . . . . Machines Repaired . | . . . . . . . Machines Dismantled . | . . . . . . . Machines Sabotaged . | . . . . . . . Overloaded Fab Kills . | . . . . . . . Hacking | -11 -10 -10 -9 -9 -9 -8 --------- Run | Yrd Mat Min Mat Min Exi Min Machines Accessed 4 | . 2 . 1 . 1 . Terminals 3 | . 2 . 1 . . . Fabricators . | . . . . . . . Repair Stations . | . . . . . . . Recycling Units . | . . . . . . . Scanalyzers . | . . . . . . . Garrison Access . | . . . . . . . Total Hacks 9 | . 5 . 3 . 1 . Successful 3 | . 1 . 1 . 1 . Failed 6 | . 4 . 2 . . . Catastrophic 3 | . 2 . 1 . . . Database Lockouts . | . . . . . . . Manual 9 | . 5 . 3 . 1 . Terminals 8 | . 5 . 3 . . . Fabricators . | . . . . . . . Repair Stations . | . . . . . . . Recycling Units . | . . . . . . . Scanalyzers . | . . . . . . . Garrison Access . | . . . . . . . Terminal Hacks 3 | . 1 . 1 . 1 . Branch Access Points 2 | . 1 . 1 . . . Proto ID Catalog 1 | . . . . . 1 . Fabricator Hacks . | . . . . . . . Repair Station Hacks . | . . . . . . . Recycling Unit Hacks . | . . . . . . . Scanalyzer . | . . . . . . . Garrison Access Hacks . | . . . . . . . Unauthorized Hacks . | . . . . . . . Terminals . | . . . . . . . Fabricators . | . . . . . . . Repair Stations . | . . . . . . . Recycling Units . | . . . . . . . Scanalyzers . | . . . . . . . Garrison Access . | . . . . . . . Data Cores Recovered . | . . . . . . . Used . | . . . . . . . Hacking Detections 2 | . 1 . 1 . . . Full Trace Events 2 | . 1 . 1 . . . Feedback Events . | . . . . . . . Feedback Blocked . | . . . . . . . Robot Schematics Acquired . | . . . . . . . Robots Built . | . . . . . . . Authchips . | . . . . . . . Time . | . . . . . . . Total Robot Build Rating . | . . . . . . . Part Schematics Acquired . | . . . . . . . Parts Built . | . . . . . . . Authchips . | . . . . . . . Time . | . . . . . . . Total Part Build Rating . | . . . . . . . Parts Repaired . | . . . . . . . Time . | . . . . . . . Parts Recycled . | . . . . . . . Recycled Matter . | . . . . . . . Retrieved Matter . | . . . . . . . Retrieved Components . | . . . . . . . Parts Scanalyzed . | . . . . . . . Part Schematics Acquired . | . . . . . . . Parts Damaged . | . . . . . . . Bothacking | -11 -10 -10 -9 -9 -9 -8 ------------ Run | Yrd Mat Min Mat Min Exi Min Used RIF Installer . | . . . . . . . Robots Hacked . | . . . . . . . Non-combat . | . . . . . . . Combat . | . . . . . . . Robot Hacks Applied . | . . . . . . . Relay Couplers Released . | . . . . . . . Fabnet Peak Effective % . | . . . . . . . Robots Rewired . | . . . . . . . Allies Hacked . | . . . . . . . Hacks Repelled . | . . . . . . . Allies | -11 -10 -10 -9 -9 -9 -8 -------- Run | Yrd Mat Min Mat Min Exi Min Total Allies . | . . . . . . . Largest Group . | . . . . . . . Highest-Rated Group . | . . . . . . . Highest-Rated Ally . | . . . . . . . Total Orders . | . . . . . . . Ally Attacks . | . . . . . . . Total Damage . | . . . . . . . Kills . | . . . . . . . Allies Corrupted . | . . . . . . . Allies Melted . | . . . . . . . Intel | -11 -10 -10 -9 -9 -9 -8 ------- Run | Yrd Mat Min Mat Min Exi Min Active Infowar (turns) . | . . . . . . . Robot Analysis Total . | . . . . . . . Derelict Logs Recovered 3 | . . 1 . 2 . . Drone Launches . | . . . . . . . Drone Recoveries . | . . . . . . . Exploration | -11 -10 -10 -9 -9 -9 -8 ------------- Run | Yrd Mat Min Mat Min Exi Min Turns Passed 568 | 10 41 94 50 187 118 68 Spaces Moved 1105 | 19 82 181 99 356 233 135 Core 1105 | 19 82 181 99 356 233 135 Treads . | . . . . . . . Legs . | . . . . . . . Wheels . | . . . . . . . Hover . | . . . . . . . Flight . | . . . . . . . Fastest Speed 50 | 50 50 50 50 50 50 50 Average Speed 50 | 50 50 50 50 50 50 50 Slowest Speed 50 | 50 50 50 50 50 50 50 Overloaded Moves . | . . . . . . . Propulsion Burnouts . | . . . . . . . Robots Hopped . | . . . . . . . Potential Cave-ins . | . . . . . . . Cave-ins Triggered . | . . . . . . . Exploration Rate (%) 39 | 3 25 37 24 69 63 55 Regions Visited 6 Branch Regions 4 Pre-discovered Areas 1 | . . . . 1 . . Known Exits Taken 2 | . 1 . 1 . . . Unknown Exits Taken 4 | 1 . 1 . 1 1 . Scrap Searched 4 | . . 1 . 2 . 1 Spaces Dug . | . . . . . . . Terrain Destroyed . | . . . . . . . Melee . | . . . . . . . Projectile . | . . . . . . . AOE . | . . . . . . . Terrain Rammed . | . . . . . . . Walls Destroyed . | . . . . . . . Machines Disabled . | . . . . . . . Actions | -11 -10 -10 -9 -9 -9 -8 --------- Run | Yrd Mat Min Mat Min Exi Min Total 1112 | 18 81 183 98 364 233 135 Wait . | . . . . . . . Move 1099 | 18 81 180 98 355 232 135 Hop . | . . . . . . . Pick Up . | . . . . . . . Fast Attach 1 | . . . . . 1 . Attach . | . . . . . . . Detach . | . . . . . . . Swap . | . . . . . . . Drop . | . . . . . . . Fire . | . . . . . . . Melee . | . . . . . . . Ram 12 | . . 3 . 9 . . Kick . | . . . . . . . Crush . | . . . . . . . Escape Stasis . | . . . . . . . Rewire . | . . . . . . . Trap . | . . . . . . . Miscellaneous . | . . . . . . . Route ------- -11/Scrapyard -10/Materials (discovered 2 exits: *Mat / *Min) -10/Mines -9/Materials (discovered 4 exits: *Min x2 / Sto x2) -9/Mines (discovered 3 exits: [*Mat x2] / *Exi) -9/Exiles -8/Mines History --------- Turn | Location | Event 3 | -11/Scrapyard | Discovered new exit (range 16) 11 | -11/Scrapyard | Entered Materials 31 | -10/Materials | Identified exit to Mines 37 | -10/Materials | Discovered new exit (range 15) 52 | -10/Materials | Entered Mines 77 | -10/Mines | Learned Materials terminal intel 138 | -10/Mines | Discovered new exit (range 16) 146 | -10/Mines | Entered Materials 146 | -9/Materials | Evolved 2 slots: Propulsion x2 147 | -9/Materials | Loaded intel: 12 terminal locations 169 | -9/Materials | Identified exit to Mines 169 | -9/Materials | Identified exit to Storage 196 | -9/Materials | Entered Mines 197 | -9/Mines | Assembled infested the area 210 | -9/Mines | Learned Materials terminal intel 240 | -9/Mines | Received a Rocket Launcher from a helpful Derelict 250 | -9/Mines | Discovered new exit (range 11) 288 | -9/Mines | Learned location of Zion (-6) 305 | -9/Mines | Build established: Mutant 369 | -9/Mines | Discovered new exit (range 10) 372 | -9/Mines | Core integrity fell below 50% 381 | -9/Mines | Deemed a non-threat by the Exiles lab entrance 381 | -9/Mines | Discovered new exit (range 5) 383 | -9/Mines | Entered Exiles 398 | -9/Exiles | Met 8R-AWN 406 | -9/Exiles | Met EX-HEX 423 | -9/Exiles | Met EX-BIN 431 | -9/Exiles | Aligned with FarCom system 432 | -9/Exiles | Given EX-Vault access code 446 | -9/Exiles | Opened EX-Vault 449 | -9/Exiles | Found 0b10 Alert Chip 460 | -9/Exiles | Warned to stay clear of 0b10 Research branches 477 | -9/Exiles | Met EX-DEC 497 | -9/Exiles | Discovered new exit (range 10) 501 | -9/Exiles | Left Exiles lab with 0b10 Alert Chip 501 | -9/Exiles | Entered Mines 539 | -8/Mines | Core integrity fell below 20% 569 | -8/Mines | Destroyed by H-55 Commando with Assault Rifle Last Messages --------------- it sure would save us a lot of time when running errands. I'm not complaining though, nope, not me! I get that having only half of the bot ever arrive at its destination is tough on maintenance, and they said there likely wouldn't be any breakthroughs in the near term so they're doing FarCom instead. 00497_ EXIT=FOUND LOCATION=UNKNOWN GOAL=ESCAPE 00501_ Receiving FarCom transmissions... 00511_ Searching scrap... 00511_ Found Imp. Light Armor Plating. 00511_ Found Arm. Treads. 00511_ Found Reaction Control System. 00511_ Found 60 Matter. 00512_ Acquired 10 matter. 00553_ T-07 Excavator is excavating. 00569_ Slug penetrates Wall. Map ----- +----------------------------------------------------+ | ?????## ##????# ????## ?? | | ????## #???????????##### | | ??# #??#?????????????# | | ?# ## #?????????????## | | ?# #??????????????## | | ?## ##### ####???????????????## | | ??###????## #???????????????????# | | ??????????# ##????????????????????# | | ????????### #?????????????????????? | | ????????# ####??????????????????? | | ????????# #### ##?????????????????? | | ????????####???##s ###### #????????? | | ????????????????#s #????????? | | ????????????????# #????????? | | ????????????????# ######## #???????? | | ????????????????#s #?????????????????? | | ????????????????# #?????????????????? | | ????????????????# ##?????????????????? | | ????????????????## ##??????????????????? | | ?????????????????# #???????????????????? | | ???????????????### #???????????????????? | | ???????????????# #???????????????????? | | ???????????????# ####???????????????????? | | ??????????????## #??????????????????????? | | ?????????????## ##?????????????????????? | | ?????????????# @ #?????????????????????? | | ???????? ??????????????????? | | ??? ??????????????? | | ??# h ###### #??????????? | | ??####???????? ## #?????????? | | ?????????????? ##?# ??????????? | | ????????????? ##???# """??????????? | | ????????????? ##????? "????????????? | | ???????????? ###???????? "????????????? | | ????????????#???????????? ???????????? | | ?????????????????????????? #????????????? | | ????????????????????????????????????????? | | ????????????????????????????????????????? | | ????????????????????????????????????????? | | ????????????????????????????????????????? | | | | | | | | | | | | | | | | | | | | | +----------------------------------------------------+ Best States ------------- Heat Dissipation 28 Energy Generation 5 Energy Capacity 100 Matter Stores 300 Matter Capacity 300 Sight Range 16 Terrain Scan Density 10 Evasion (%) 50 Item Schematics ----------------- None Robot Schematics ------------------ None Fabricated ------------ Nothing Repaired ---------- Nothing Alien Tech Used ----------------- None Achievements -------------- None Challenges ------------ None Game ------ Seed SuspensionSwordCorpse Manual? 0 Play Time 00:06:31 Cumulative 95.1 hours Start 2025.08.04 @ 01:09:14 End 2025.08.04 @ 01:15:15 Sessions 1 Manual Loads 0 Difficulty Rogue Special Mode None Game No. 116 Rogue 116 Adventurer 0 Explorer 0 Win Type - Total 0 Types 0/0/0/0/0/0/0/0/0/0 Lore% 58 Gallery% 44 Achievement% 42 Wizard Run 0 Options --------- Layout 1 ASCII 0 Keyboard 0 Movement Arrows Keybinds 0 Fullscreen 1 Font 24/Smallcaps Map View 50x35 Zoom Use 0% Tactical HUD 1 Map Filters NONE Filters NONE Steam 1 RUN: c79d8091-dcf9-4377-9849-ea338bc6f851